Cogmind - Beta 10.2 @@@ ROGUE MODE // 2022.02.21 @ 10:42:04 Player: russur Result: Self-destructed Performance ------------- Evolutions (2) 1000 Regions Visited (5) 1000 Robots Destroyed (21) 105 Value Destroyed (542) 542 Prototype IDs (1) 20 Alien Tech Used (0) 0 Bonus (0) 0 TOTAL SCORE: 2667 Bonus ------- None Cogmind --------- Core Integrity 467/550 Matter 300/300 Energy 275/275 System Corruption 0% Temperature Cool (0) Movement Walking (185) Ox2 Location -8/Materials Parts ------- > --- POWER (1) -------- Deuterium Engine > --- PROPULSION (3) --- Aluminum Leg Titanium Leg > --- UTILITY (5) ------ Large Storage Unit Large Storage Unit Large Storage Unit Visual Processing Unit Advanced Targeting Computer > --- WEAPON (2) ------- Katana > --- INVENTORY (22) --- Ion Engine Ion Engine Ion Engine Light Ion Engine Light Ion Engine Light Nuclear Core Light Treads Light Treads Wheel Heat Sink High-capacity Battery (400) Compact Battery (300) Compact Battery (300) Hardlight Generator Small Laser Small Laser Particle Gun EM Pulse Cannon Heavy Assault Rifle Heavy Assault Rifle Mining Laser Peak State ------------ > --- POWER ------------ Deuterium Engine > --- PROPULSION ------- Aluminum Leg Aluminum Leg Titanium Leg > --- UTILITY ---------- Large Storage Unit Large Storage Unit Large Storage Unit Visual Processing Unit Advanced Targeting Computer > --- WEAPON ----------- Advanced Beam Rifle Katana > --- INVENTORY -------- Ion Engine Ion Engine Ion Engine Light Ion Engine Light Ion Engine Light Nuclear Core Light Treads Light Treads Wheel Heat Sink High-capacity Battery Compact Battery Compact Battery Small Laser Small Laser Particle Gun EM Pulse Cannon Heavy Assault Rifle Heavy Assault Rifle Mining Laser [Rating: 26] Favorites ----------- Power Ion Engine Engine Ion Engine Propulsion Light Treads Treads Light Treads Leg Aluminum Leg Wheel Wheel Utility Large Storage Unit Device Heat Sink Storage Large Storage Unit Processor Advanced Targeting Computer Weapon Assault Rifle Energy Gun Small Laser Ballistic Gun Assault Rifle Slashing Weapon Katana Build | -11 -10 -10 -10 -9 -8 ------- Run | Scr Mat Min Exi Min Mat Slots Evolved 4 | . . . . . 4 Power . | . . . . . . Propulsion 1 | . . . . . 1 Utility 3 | . . . . . 3 Weapon . | . . . . . . Parts Attached 27 | 6 4 1 1 3 12 Power 3 | 1 1 . . . 1 Engine 3 | 1 1 . . . 1 Core . | . . . . . . Reactor . | . . . . . . Propulsion 8 | 2 1 . . 2 3 Treads 3 | 2 1 . . . . Leg 4 | . . . . 1 3 Wheel 1 | . . . . 1 . Hover . | . . . . . . Flight . | . . . . . . Utility 11 | 1 2 . 1 . 7 Device 1 | . . . . . 1 Storage 8 | 1 2 . 1 . 4 Processor 2 | . . . . . 2 Hackware . | . . . . . . Protection . | . . . . . . Artifact . | . . . . . . Weapon 5 | 2 . 1 . 1 1 Energy Gun 2 | . . 1 . . 1 Energy Cannon . | . . . . . . Ballistic Gun 2 | 2 . . . . . Ballistic Cannon . | . . . . . . Launcher . | . . . . . . Special Weapon . | . . . . . . Impact Weapon . | . . . . . . Slashing Weapon 1 | . . . . 1 . Piercing Weapon . | . . . . . . Special Melee Weapon . | . . . . . . Unidentified Prototypes 1 | . . . . . 1 Parts Lost 5 | . . 1 . 2 2 Power . | . . . . . . Propulsion 3 | . . . . 2 1 Utility . | . . . . . . Weapon 2 | . . 1 . . 1 Highest Loss Streak 2 | . . 1 . 1 2 Average Slot Usage (%) 93 | . 90 99 97 78 91 Engine 13 | . 14 14 14 14 9 Treads 21 | . 28 28 28 11 . Leg 4 | . . . . 4 24 Storage 24 | . 19 28 26 14 28 Processor 1 | . . . . . 10 Energy Gun 10 | . . 11 14 14 8 Ballistic Gun 13 | . 28 16 14 2 . Slashing Weapon 2 | . . . . 11 9 Naked Turns . | . . . . . . Heaviest Build 137 | 13 41 40 88 88 137 Greatest Support 40 | 40 40 40 40 40 37 Greatest Overweight (x) 8 | . 1 . 2 8 8 Average Overweight (x) . | . . . . 6 2 Largest Inventory Capacity 42 | 6 16 16 24 24 42 Average Capacity 17 | 5 9 16 17 24 29 Most Carried 21 | 2 15 16 18 19 21 Average Carried 13 | . 5 15 15 18 17 Final Capacity 24 | 6 16 16 24 24 22 Final Carried 21 | 2 15 16 18 19 21 Class Distribution -------------------- 67% | Mutant 32% | Hauler-Mutant Dominant Class ---------------- Mutant | -10/Materials Mutant | -10/Mines Mutant | -10/Exiles Hauler-Mutant | -9/Mines Hauler-Mutant | -8/Materials Resources | -11 -10 -10 -10 -9 -8 ----------- Run | Scr Mat Min Exi Min Mat Matter Collected 709 | 234 240 56 . 59 120 Remotely . | . . . . . . Salvage Created 760 | . 366 92 . 105 197 Parts 50 | . 34 5 . 6 5 Haulers Intercepted 2 | . 1 . . . 1 Recyclers Shooed . | . . . . . . Parts Field Recycled . | . . . . . . Retrieved Matter . | . . . . . . Parts Self-Destructed . | . . . . . . Prevented . | . . . . . . Kills | -11 -10 -10 -10 -9 -8 ------- Run | Scr Mat Min Exi Min Mat Combat Hostiles Destroyed 14 | . 7 2 . 2 3 Melee 3 | . . . . . 3 Guns 11 | . 7 2 . 2 . Classes Destroyed 7 | . 5 . . 2 . Worker 1 | . . . . 1 . Builder 2 | . 2 . . . . Hauler 2 | . 1 . . . 1 Watcher 2 | . 2 . . . . Swarmer 3 | . 3 . . . . Grunt 10 | . 4 2 . 1 3 Duelist 1 | . . . . 1 . Best Kill Streak 5 | . 5 2 . 2 2 Combat Bots Only 3 | . 3 2 . 2 1 Max Kills in Single Turn 2 | . 2 1 . 1 1 Gunslinging . | . . . . . . Exploded . | . . . . . . Melee 1 | . . . . . 1 Uniques/NPCs Destroyed . | . . . . . . Combat | -11 -10 -10 -10 -9 -8 -------- Run | Scr Mat Min Exi Min Mat Damage Taken 1593 | . 277 210 . 593 513 Core 229 | . 80 . . 66 83 Absorbed by Shields . | . . . . . . Core Remaining (%) 70 | 100 . . . 41 . Volleys Fired 51 | . 29 9 . 13 . Largest 2 | . 2 2 . 2 . Hottest 60 | . 40 40 . 60 . Shots Fired 96 | . 58 17 . 21 . Gun 96 | . 58 17 . 21 . Cannon . | . . . . . . Launcher . | . . . . . . Special . | . . . . . . Kinetic 83 | . 58 17 . 8 . Thermal 13 | . . . . 13 . Explosive . | . . . . . . Electromagnetic . | . . . . . . Robot Hit Streak 13 | . 8 6 . 13 . Robot Miss Streak 2 | . 2 1 . 1 . Penetration Max . | . . . . . . Secondary Targets 2 | . 1 1 . . . Max Gunslinging Chain 1 | . 1 1 . . . Shots Hit Robots 88 | . 38 13 . 17 20 Core Hits 37 | . 20 5 . 6 6 Critical Hits 1 | . . . . . 1 Critical Kills 1 | . . . . . 1 Critical Parts Destroyed . | . . . . . . Melee Attacks 27 | . . . . 3 24 Impact . | . . . . . . Slashing 27 | . . . . 3 24 Piercing . | . . . . . . Sneak Attacks 2 | . . . . . 2 Combat Hostiles 1 | . . . . . 1 Follow-up Attacks . | . . . . . . Damage Inflicted 1587 | . 433 144 . 239 771 Guns 745 | . 433 138 . 174 . Cannons . | . . . . . . Explosions . | . . . . . . Melee 836 | . . . . 65 771 Ramming 6 | . . 6 . . . Kinetic 649 | . 433 138 . 78 . Thermal 96 | . . . . 96 . Explosive . | . . . . . . Electromagnetic . | . . . . . . Impact . | . . . . . . Slashing 836 | . . . . 65 771 Piercing . | . . . . . . Highest Corruption . | . . . . . . Average Corruption . | . . . . . . Corruption Purged . | . . . . . . Overload Shots . | . . . . . . Overflow Damage 125 | . . . . 24 101 Projectiles . | . . . . . . Explosions . | . . . . . . Melee 125 | . . . . 24 101 Knockbacks . | . . . . . . Impact . | . . . . . . Kinetic . | . . . . . . Secondary . | . . . . . . Self-Inflicted Damage . | . . . . . . Shots . | . . . . . . Rammed 1 | . . 1 . . . Targets Rammed 1 | . . 1 . . . Kicked . | . . . . . . Crushed . | . . . . . . Highest Temperature 12 | . 9 9 . 12 . Average Temperature 7 | . 3 3 . 11 . Received Heat Transfer 534 | . 105 120 . 12 297 Siege Activations . | . . . . . . Robots Corrupted . | . . . . . . Combat Hostiles . | . . . . . . Parts Fried . | . . . . . . Impact Corruptions . | . . . . . . Robots Melted . | . . . . . . Combat Hostiles . | . . . . . . Parts Melted . | . . . . . . Heat Transferred 225 | . . . . 225 . Parts Sabotaged . | . . . . . . Parts Stolen . | . . . . . . Parts Stripped . | . . . . . . Power Chain Reactions . | . . . . . . Missiles Intercepted . | . . . . . . Alert | -11 -10 -10 -10 -9 -8 ------- Run | Scr Mat Min Exi Min Mat Peak Influence 261 | . 261 156 . 60 192 Initial 101 | . . 101 . . . Average 90 | . 152 152 . 36 44 Maximum Alert Level 1 | . 1 . . . . Low Security (%) 88 | 100 62 100 . 100 100 Level 1 11 | . 37 . . . . Level 2 . | . . . . . . Level 3 . | . . . . . . Level 4 . | . . . . . . Level 5 . | . . . . . . High Security . | . . . . . . Max Security . | . . . . . . Squads Dispatched 3 | . . . . . 3 Investigation 1 | . . . . . 1 Extermination . | . . . . . . Reinforcement 2 | . . . . . 2 Assault . | . . . . . . Garrison . | . . . . . . Intercept . | . . . . . . Construction Impeded 1 | . . . . . 1 Haulers Reinforced . | . . . . . . Stealth | -11 -10 -10 -10 -9 -8 --------- Run | Scr Mat Min Exi Min Mat Distress Signals 3 | . . . . . 3 Communications Jammed . | . . . . . . Distress Signals . | . . . . . . Times Spotted 32 | . 10 2 . 5 15 Peak Tracking Total 7 | . 3 2 . 2 7 Tactical Retreats 5 | . . . . 2 3 Traps | -11 -10 -10 -10 -9 -8 ------- Run | Scr Mat Min Exi Min Mat Traps Triggered 1 | . . . . . 1 Indirectly . | . . . . . . Trap Hack Attempts . | . . . . . . Triggered . | . . . . . . Disarmed . | . . . . . . Reprogrammed . | . . . . . . Reused . | . . . . . . Traps Extracted . | . . . . . . Installed . | . . . . . . Triggered . | . . . . . . Machines | -11 -10 -10 -10 -9 -8 ---------- Run | Scr Mat Min Exi Min Mat Machines Disabled . | . . . . . . Max in Single Turn . | . . . . . . Machines Sabotaged . | . . . . . . Garrisons Compromised . | . . . . . . Overloaded Fab Kills . | . . . . . . Fab Network Shutdowns . | . . . . . . Hacking | -11 -10 -10 -10 -9 -8 --------- Run | Scr Mat Min Exi Min Mat Machines Accessed 5 | . . 1 4 . . Terminals 1 | . . 1 . . . Fabricators . | . . . . . . Repair Stations . | . . . . . . Recycling Units . | . . . . . . Scanalyzers . | . . . . . . Garrison Access . | . . . . . . Total Hacks 5 | . . 1 4 . . Successful 4 | . . . 4 . . Failed 1 | . . 1 . . . Catastrophic 1 | . . 1 . . . Database Lockouts . | . . . . . . Manual . | . . . . . . Terminals 1 | . . 1 . . . Fabricators . | . . . . . . Repair Stations . | . . . . . . Recycling Units . | . . . . . . Scanalyzers . | . . . . . . Garrison Access . | . . . . . . Terminal Hacks 4 | . . . 4 . . Record 4 | . . . 4 . . Fabricator Hacks . | . . . . . . Repair Station Hacks . | . . . . . . Recycling Unit Hacks . | . . . . . . Scanalyzer . | . . . . . . Garrison Access Hacks . | . . . . . . Unauthorized Hacks . | . . . . . . Terminals . | . . . . . . Fabricators . | . . . . . . Repair Stations . | . . . . . . Recycling Units . | . . . . . . Scanalyzers . | . . . . . . Garrison Access . | . . . . . . Data Cores Recovered . | . . . . . . Used . | . . . . . . Hacking Detections 1 | . . 1 . . . Full Trace Events . | . . . . . . Feedback Events . | . . . . . . Feedback Blocked . | . . . . . . Robot Schematics Acquired . | . . . . . . Robots Built . | . . . . . . Matter . | . . . . . . Time . | . . . . . . Total Robot Build Rating . | . . . . . . Part Schematics Acquired . | . . . . . . Parts Built . | . . . . . . Matter . | . . . . . . Time . | . . . . . . Total Part Build Rating . | . . . . . . Parts Repaired . | . . . . . . Time . | . . . . . . Parts Recycled . | . . . . . . Recycled Matter . | . . . . . . Retrieved Matter . | . . . . . . Retrieved Components . | . . . . . . Parts Scanalyzed . | . . . . . . Part Schematics Acquired . | . . . . . . Parts Damaged . | . . . . . . Bothacking | -11 -10 -10 -10 -9 -8 ------------ Run | Scr Mat Min Exi Min Mat Used RIF Installer . | . . . . . . Robots Hacked . | . . . . . . Non-combat . | . . . . . . Combat . | . . . . . . Robot Hacks Applied . | . . . . . . Relay Couplers Released . | . . . . . . Robots Rewired . | . . . . . . Allies Hacked . | . . . . . . Hacks Repelled . | . . . . . . Allies | -11 -10 -10 -10 -9 -8 -------- Run | Scr Mat Min Exi Min Mat Total Allies 3 | . . . . 3 . Largest Group 3 | . . . . 3 . Highest-Rated Group 40 | . . . . 40 . Highest-Rated Ally 16 | . . . . 16 . Total Orders . | . . . . . . Ally Attacks 2 | . . . . 2 . Total Damage . | . . . . . . Kills . | . . . . . . Allies Corrupted . | . . . . . . Allies Melted . | . . . . . . Intel | -11 -10 -10 -10 -9 -8 ------- Run | Scr Mat Min Exi Min Mat Robot Analysis Total . | . . . . . . Derelict Logs Recovered 1 | . . 1 . . . Drone Launches . | . . . . . . Drone Recoveries . | . . . . . . Exploration | -11 -10 -10 -10 -9 -8 ------------- Run | Scr Mat Min Exi Min Mat Turns Passed 1980 | 88 340 188 858 195 311 Spaces Moved 996 | 55 134 99 514 77 117 Core 13 | 13 . . . . . Treads 821 | 42 134 99 514 32 . Legs 104 | . . . . . 104 Wheels 58 | . . . . 45 13 Hover . | . . . . . . Flight . | . . . . . . Fastest Speed 50 | 50 160 160 160 160 153 Average Speed 166 | 134 168 160 164 192 180 Slowest Speed 240 | 160 180 160 200 240 213 Overloaded Moves . | . . . . . . Propulsion Burnouts . | . . . . . . Robots Hopped . | . . . . . . Cave-ins Triggered . | . . . . . . Exploration Rate (%) 32 | 4 35 32 90 19 16 Regions Visited 5 Branch Regions 3 Pre-discovered Areas . | . . . . . . Known Exits Taken . | . . . . . . Unknown Exits Taken 5 | 1 1 1 1 1 . Scrap Searched 1 | . . . . 1 . Spaces Dug . | . . . . . . Terrain Destroyed . | . . . . . . Melee . | . . . . . . Projectile . | . . . . . . AOE . | . . . . . . Terrain Rammed . | . . . . . . Walls Destroyed . | . . . . . . Machines Disabled . | . . . . . . Actions | -11 -10 -10 -10 -9 -8 --------- Run | Scr Mat Min Exi Min Mat Total 1175 | 66 190 113 530 98 178 Wait 29 | 4 10 . . . 15 Move 991 | 54 133 98 513 76 117 Hop . | . . . . . . Pick Up 39 | 2 12 3 14 1 7 Fast Attach 15 | 6 1 . 1 3 4 Attach 6 | . . 1 . . 5 Detach . | . . . . . . Swap 6 | . 3 . . . 3 Drop 10 | . 2 1 2 2 3 Fire 51 | . 29 9 . 13 . Melee 27 | . . . . 3 24 Ram . | . . . . . . Kick . | . . . . . . Crush 1 | . . 1 . . . Escape Stasis . | . . . . . . Rewire . | . . . . . . Trap . | . . . . . . Miscellaneous . | . . . . . . Route ------- -11/Scrapyard -10/Materials -10/Mines -10/Exiles -9/Mines -8/Materials History --------- Turn | Location | Event 15 | -11/Scrapyard | Discovered new exit (range 15) 89 | -11/Scrapyard | Entered Materials 319 | -10/Materials | Build established: Mutant 385 | -10/Materials | Discovered new exit (range 7) 429 | -10/Materials | Entered Mines 600 | -10/Mines | Learned Materials emergency access door positions 609 | -10/Mines | Deemed a non-threat by the Exiles lab entrance 609 | -10/Mines | Discovered new exit (range 5) 617 | -10/Mines | Entered Exiles 617 | -10/Exiles | Found Exiles lab abandoned 1445 | -10/Exiles | Discovered new exit (range 15) 1475 | -10/Exiles | Entered Mines 1499 | -9/Mines | Met a Derelict bent on vengeance 1554 | -9/Mines | Discovered new exit (range 4) 1598 | -9/Mines | Assembled infested the area 1603 | -9/Mines | Assisted by a Guerilla fighting off Assembled 1607 | -9/Mines | Assisted by bots powering up and referring to "LRC-V3" 1617 | -9/Mines | Core integrity fell below 50% 1645 | -9/Mines | Build established: Hauler-Mutant 1670 | -9/Mines | Entered Materials 1670 | -8/Materials | Evolved 4 slots: Propulsion x1, Utility x3 1981 | -8/Materials | Self-destructed Last Messages --------------- 01870_ A-02 Transporter destroyed. 01875_ Acquired Hvy. Assault Rifle. 01876_ Acquired 25 matter. 01879_ Acquired Hvy. Assault Rifle. 01893_ K-01 Serf cleans the Recycling Unit. 01899_ Acquired Com. Battery. 01905_ Acquired Hardlight Generator. 01937_ Destroyed Lgt. Nuclear Core. 01945_ G-47 Trooper destroyed. 01948_ W-25 Informer sends out distress signal. 01949_ K-01 Serf collects debris. 01956_ ALERT: Hostiles spotted, dispatching reinforcements to Terminal M003. 01958_ W-25 Informer sends out distress signal. 01964_ Aluminum Leg destroyed. 01965_ Destroyed Aluminum Leg. 01967_ G-47 Trooper suffers critical hit. 01967_ G-47 Trooper destroyed. 01973_ K-01 Serf cleans the Terminal. 01978_ Adv. Beam Rifle destroyed. Map ----- +----------------------------------------------------+ | ?????????????????????????????????????????????????? | | ?????????????????????????????????????????????????? | | ?????????????????????????????????????????????????? | | ?????????????????????????????????????????????????? | | ???????????????????????????????????????????????### | | ???????????????????????????????????????????????# | | ???????????????????????????????????????????????# | | ???????????????????????????????????????????????# | | ???????????????????????????????????????????????# | | ???????????????????????????????????????????????# | | ???????????????????????????????????????????????# | | ???????????????????????????????????????????????# | | ???????????????????????????????????????????????### | | ?????????????????????????????????????????????????# | | ???????????????????????#######?????????????????### | | ???????????????????????# ##????????????????# | | ???????????????????????# ?????????????????# | | ???????????????????????+ Y ?????????????????# | | ???????????????????????# ??????????????????# | | ???????????????????????# ??????????????????# | | ????????????????????????# #######+#??????????## | | ????????????????????????# # #???????????# | | ????????????????????????# # """ #???????????# | | ????????????????????????# + """ #???????????# | | ????????????????????????# # """ #???????????# | | ????????????????????????#@ #*%! ###########?# | | ??????????????????###" "# b##/####+#! #?# | | +????????????????# gg ####|#= !! ### | | ???????????????""" r %/% / | | ??????????????#"T ^""" ## #% ### | | ??????????????#""" """ ##/############# | | ??????????????#### """ # ?????#[! # | | ?????????????????# " # ?????# + | | ?????????????????# T # ?????# """ # | | ???????????????? " # ?????# """ # | | ??????????????? ku + [ ?????# """ ## | | ?????????????? ! # ?????# #? | | ?????????????##?###+######## # "????# #? | | ???????????????????????????####### "????#######? | | ?????????????????????????????????# ???????????? | | ?????????????????????????????????#/###???????????? | | ?????????????????????????????????# ??????????????? | | ?????????????????????????????????? ??????????????? | | ?????????????????????????????????? ??????????????? | | ?????????????????????????????????? ??????????????? | | ?????????????????????????????????????????????????? | | ?????????????????????????????????????????????????? | | ?????????????????????????????????????????????????? | | ?????????????????????????????????????????????????? | | ?????????????????????????????????????????????????? | +----------------------------------------------------+ Best States ------------- Heat Dissipation 31 Energy Generation 14 Energy Capacity 275 Matter Stores 300 Matter Capacity 300 Sight Range 18 Terrain Scan Density 10 Evasion (%) 50 Targeting Accuracy 8 Recoil Reduction 2 Item Schematics ----------------- None Robot Schematics ------------------ None Fabricated ------------ Nothing Alien Tech Used ----------------- None Achievements -------------- None Challenges ------------ None Game ------ Seed WeaponShieldMatter Manual? 0 Play Time 00:15:10 Cumulative 23.9 hours Start 2022.02.21 @ 10:29:39 End 2022.02.21 @ 10:42:04 Sessions 1 Manual Loads 0 Difficulty Rogue Special Mode None Game No. 57 Rogue 57 Adventurer 0 Explorer 0 Win Type - Total 0 Types 0/0/0/0/0/0/0/0/0 Lore% 22 Gallery% 33 Achievement% 26 Wizard Run 0 Options --------- ASCII 0 Keyboard 0 Movement Numpad Keybinds 0 Fullscreen 1 Font 16/SmallcapsGlow Map View 76x50 Tactical HUD 1 Map Filters NONE Filters NONE Steam 1 RUN: 1cb00c7e-ed40-43ea-abb9-9af24c3037ea